[Event "Early-Titled-Tuesday-Blitz-September-05-2023"]
[Site "Chess.com"]
[Date "2023.09.05"]
[Round "1"]
[White "Journey_to_GrandMaster_YT"]
[Black "nassimzrikem"]
[Result "1-0"]
[WhiteElo "2590"]
[BlackElo "2229"]
[TimeControl "180+1"]
[EndTime "8:07:03 PDT"]
[Termination "Journey_to_GrandMaster_YT won by resignation"]

1. d4 {[%clk 0:03:00.7]} 1... d5 {[%clk 0:02:59.5]} 2. Nf3 {[%clk 0:02:59.3]}
2... c5 {[%clk 0:02:59.7]} 3. c4 {[%clk 0:02:57.4]} 3... Nf6 {[%clk 0:02:59.6]}
4. cxd5 {[%clk 0:02:57.1]} 4... cxd4 {[%clk 0:02:50.6]} 5. Qxd4 {[%clk
0:02:49.8]} 5... Qxd5 {[%clk 0:02:49]} 6. Nc3 {[%clk 0:02:49.8]} 6... Qxd4
{[%clk 0:02:48]} 7. Nxd4 {[%clk 0:02:50.7]} 7... a6 {[%clk 0:02:46.8]} 8. g3
{[%clk 0:02:45.6]} 8... e6 {[%clk 0:02:46.7]} 9. Bg2 {[%clk 0:02:45.5]} 9... Bb4
{[%clk 0:02:43.5]} 10. O-O {[%clk 0:02:41.8]} 10... O-O {[%clk 0:02:35]} 11. Na4
{[%clk 0:02:25.5]} 11... Nbd7 {[%clk 0:02:18.5]} 12. a3 {[%clk 0:02:23.2]} 12...
Ba5 {[%clk 0:01:56.6]} 13. b4 {[%clk 0:02:09.5]} 13... Bd8 {[%clk 0:01:52.2]}
14. Bb2 {[%clk 0:02:06.7]} 14... Rb8 {[%clk 0:01:45.2]} 15. Rfd1 {[%clk
0:01:59.2]} 15... b5 {[%clk 0:01:36.6]} 16. Nc5 {[%clk 0:01:49.3]} 16... Nxc5
{[%clk 0:01:12.5]} 17. bxc5 {[%clk 0:01:49.1]} 17... Bb7 {[%clk 0:01:04.1]} 18.
c6 {[%clk 0:01:11.1]} 18... Ba8 {[%clk 0:01:03.5]} 19. Rac1 {[%clk 0:01:11.2]}
19... Bc7 {[%clk 0:01:01.4]} 20. f4 {[%clk 0:01:05.8]} 20... Rfd8 {[%clk
0:00:55.4]} 21. e4 {[%clk 0:01:00.1]} 21... e5 {[%clk 0:00:54.7]} 22. Nf5 {[%clk
0:00:47]} 22... Kf8 {[%clk 0:00:35.3]} 23. Bxe5 {[%clk 0:00:41]} 23... Bxe5
{[%clk 0:00:22.4]} 24. Rxd8+ {[%clk 0:00:36.2]} 24... Rxd8 {[%clk 0:00:21.5]}
25. fxe5 {[%clk 0:00:36.6]} 25... Ne8 {[%clk 0:00:20.9]} 26. Nd6 {[%clk
0:00:24.8]} 26... Ke7 {[%clk 0:00:13.6]} 27. c7 {[%clk 0:00:24]} 27... Nxc7
{[%clk 0:00:01.3]} 28. Rxc7+ {[%clk 0:00:23]} 28... Ke6 {[%clk 0:00:02.2]} 29.
Bh3+ {[%clk 0:00:17.7]} 29... Kxe5 {[%clk 0:00:03.1]} 30. Nxf7+ {[%clk
0:00:17.6]} 30... Kd4 {[%clk 0:00:03.9]} 31. Nxd8 {[%clk 0:00:17.8]} 31... Kxe4
{[%clk 0:00:04.4]} 32. Bg2+ {[%clk 0:00:17.5]} 32... Kd3 {[%clk 0:00:05]} 33.
Bxa8 {[%clk 0:00:18.4]} 1-0

[Event "Early-Titled-Tuesday-Blitz-September-05-2023"]
[Site "Chess.com"]
[Date "2023.09.05"]
[Round "1"]
[White "Hope_6"]
[Black "Cheer_Down"]
[Result "0-1"]
[WhiteElo "2699"]
[BlackElo "2425"]
[TimeControl "180+1"]
[EndTime "8:07:04 PDT"]
[Termination "Cheer_Down won by checkmate"]

1. d4 {[%clk 0:02:59.5]} 1... Nf6 {[%clk 0:02:58.7]} 2. c4 {[%clk 0:02:59.7]}
2... g6 {[%clk 0:02:58.9]} 3. Nc3 {[%clk 0:02:59.7]} 3... d5 {[%clk 0:02:59.2]}
4. cxd5 {[%clk 0:02:59.4]} 4... Nxd5 {[%clk 0:02:58.9]} 5. e4 {[%clk 0:02:59.9]}
5... Nxc3 {[%clk 0:02:59]} 6. bxc3 {[%clk 0:03:00.6]} 6... Bg7 {[%clk
0:02:59.1]} 7. Nf3 {[%clk 0:03:00.6]} 7... c5 {[%clk 0:02:58.3]} 8. Be3 {[%clk
0:03:00.4]} 8... Qa5 {[%clk 0:02:57]} 9. Qd2 {[%clk 0:02:58.9]} 9... O-O {[%clk
0:02:51.4]} 10. Rc1 {[%clk 0:02:57.6]} 10... Nd7 {[%clk 0:02:46]} 11. d5 {[%clk
0:02:50.1]} 11... Nf6 {[%clk 0:02:40.8]} 12. Bd3 {[%clk 0:02:49.1]} 12... c4
{[%clk 0:02:33.7]} 13. Bb1 {[%clk 0:02:47.9]} 13... Ng4 {[%clk 0:02:33.7]} 14.
Bd4 {[%clk 0:02:44]} 14... Bh6 {[%clk 0:02:32.9]} 15. Qd1 {[%clk 0:02:29.3]}
15... f6 {[%clk 0:02:20.1]} 16. h3 {[%clk 0:02:26.4]} 16... e5 {[%clk
0:02:15.9]} 17. dxe6 {[%clk 0:02:20.2]} 17... Ne5 {[%clk 0:02:15.9]} 18. e7
{[%clk 0:01:55.6]} 18... Re8 {[%clk 0:02:16.1]} 19. Bxe5 {[%clk 0:01:45.6]}
19... fxe5 {[%clk 0:02:09.9]} 20. Rc2 {[%clk 0:01:45.3]} 20... Rxe7 {[%clk
0:02:06.1]} 21. O-O {[%clk 0:01:45]} 21... Be6 {[%clk 0:02:01.7]} 22. Qe2 {[%clk
0:01:44.2]} 22... Rd8 {[%clk 0:01:59.1]} 23. Rd1 {[%clk 0:01:39.9]} 23... Red7
{[%clk 0:01:58.7]} 24. Rxd7 {[%clk 0:01:38.8]} 24... Rxd7 {[%clk 0:01:59.6]} 25.
Qe1 {[%clk 0:01:21.9]} 25... Rd3 {[%clk 0:01:47.4]} 26. Rb2 {[%clk 0:01:08.3]}
26... Qxc3 {[%clk 0:01:43.9]} 27. Qxc3 {[%clk 0:01:04.7]} 27... Rxc3 {[%clk
0:01:43.5]} 28. Rxb7 {[%clk 0:01:03.8]} 28... Rc1+ {[%clk 0:01:41]} 29. Kh2
{[%clk 0:01:03.8]} 29... c3 {[%clk 0:01:40.6]} 30. Bd3 {[%clk 0:00:58.5]} 30...
Rd1 {[%clk 0:01:35.6]} 31. Bc2 {[%clk 0:00:55.2]} 31... Rc1 {[%clk 0:01:33.9]}
32. Bd3 {[%clk 0:00:49.4]} 32... Bxa2 {[%clk 0:01:20]} 33. Rxa7 {[%clk
0:00:44.4]} 33... Bb1 {[%clk 0:01:05.3]} 34. Bxb1 {[%clk 0:00:23.9]} 34... Rxb1
{[%clk 0:01:05.3]} 35. Rc7 {[%clk 0:00:24.4]} 35... Rb2 {[%clk 0:01:04.6]} 36.
Kg3 {[%clk 0:00:19.9]} 36... c2 {[%clk 0:00:58.6]} 37. Nxe5 {[%clk 0:00:17.2]}
37... c1=Q {[%clk 0:00:55.7]} 38. Rxc1 {[%clk 0:00:17.1]} 38... Bxc1 {[%clk
0:00:56.6]} 39. f4 {[%clk 0:00:16.8]} 39... Rb3+ {[%clk 0:00:55.7]} 40. Kg4
{[%clk 0:00:14.7]} 40... Kg7 {[%clk 0:00:53.8]} 41. g3 {[%clk 0:00:10.4]} 41...
h5+ {[%clk 0:00:53.8]} 42. Kh4 {[%clk 0:00:11]} 42... Bb2 {[%clk 0:00:53.1]} 43.
Nd7 {[%clk 0:00:09.3]} 43... Rb7 {[%clk 0:00:49.4]} 44. Nc5 {[%clk 0:00:08.3]}
44... Bf6# {[%clk 0:00:49.3]} 0-1

[Event "Early-Titled-Tuesday-Blitz-September-05-2023"]
[Site "Chess.com"]
[Date "2023.09.05"]
[Round "1"]
[White "farzadbfd"]
[Black "realburq"]
[Result "1-0"]
[WhiteElo "2697"]
[BlackElo "2395"]
[TimeControl "180+1"]
[EndTime "8:07:04 PDT"]
[Termination "farzadbfd won by resignation"]

1. d4 {[%clk 0:03:00.9]} 1... d5 {[%clk 0:02:59.2]} 2. Nf3 {[%clk 0:03:01.1]}
2... Nf6 {[%clk 0:02:58]} 3. c4 {[%clk 0:03:01]} 3... e6 {[%clk 0:02:55.8]} 4.
Nc3 {[%clk 0:03:01.2]} 4... Be7 {[%clk 0:02:55.6]} 5. Bg5 {[%clk 0:03:01.2]}
5... O-O {[%clk 0:02:55]} 6. e3 {[%clk 0:03:01.7]} 6... c5 {[%clk 0:02:51.2]} 7.
cxd5 {[%clk 0:02:58.3]} 7... cxd4 {[%clk 0:02:50]} 8. Qxd4 {[%clk 0:02:53.7]}
8... exd5 {[%clk 0:02:49.3]} 9. Bb5 {[%clk 0:02:42.8]} 9... h6 {[%clk
0:02:41.8]} 10. Bh4 {[%clk 0:02:39.3]} 10... Nc6 {[%clk 0:02:41]} 11. Bxc6
{[%clk 0:02:39.1]} 11... bxc6 {[%clk 0:02:41.9]} 12. O-O {[%clk 0:02:39.6]}
12... Be6 {[%clk 0:02:39.5]} 13. Na4 {[%clk 0:02:37.6]} 13... Rb8 {[%clk
0:02:31.1]} 14. Qxa7 {[%clk 0:02:15.6]} 14... Ra8 {[%clk 0:02:22.7]} 15. Qd4
{[%clk 0:02:15.2]} 15... Qa5 {[%clk 0:02:09.4]} 16. b3 {[%clk 0:02:14.9]} 16...
c5 {[%clk 0:02:08.2]} 17. Qd2 {[%clk 0:02:15.1]} 17... Qxd2 {[%clk 0:02:07.1]}
18. Nxd2 {[%clk 0:02:16]} 18... Rfb8 {[%clk 0:02:04.1]} 19. Rac1 {[%clk
0:02:13.7]} 19... c4 {[%clk 0:02:04.6]} 20. Bg3 {[%clk 0:02:02.5]} 20... Rb4
{[%clk 0:01:56.3]} 21. Nc3 {[%clk 0:01:51.5]} 21... cxb3 {[%clk 0:01:35.1]} 22.
Nxb3 {[%clk 0:01:49.6]} 22... Nd7 {[%clk 0:01:29.3]} 23. Rfd1 {[%clk 0:01:46]}
23... Nb6 {[%clk 0:01:19.5]} 24. Rd4 {[%clk 0:01:39.1]} 24... Rxd4 {[%clk
0:01:16]} 25. Nxd4 {[%clk 0:01:40]} 25... Nc4 {[%clk 0:01:15.3]} 26. h3 {[%clk
0:01:26.2]} 26... Ba3 {[%clk 0:01:14.7]} 27. Rb1 {[%clk 0:01:25]} 27... Bb2
{[%clk 0:01:12.4]} 28. Ndb5 {[%clk 0:01:14.4]} 28... Kh7 {[%clk 0:00:44.3]} 29.
a4 {[%clk 0:01:13.4]} 29... Bf5 {[%clk 0:00:38.2]} 30. Rd1 {[%clk 0:01:13.1]}
30... Bc2 {[%clk 0:00:38.4]} 31. Rxd5 {[%clk 0:01:09.2]} 31... Bxa4 {[%clk
0:00:38.2]} 32. Nxa4 {[%clk 0:00:59.9]} 32... Rxa4 {[%clk 0:00:37.8]} 33. Nd6
{[%clk 0:00:56.3]} 33... Nxd6 {[%clk 0:00:33.4]} 34. Bxd6 {[%clk 0:00:57.2]}
34... Kg6 {[%clk 0:00:31.6]} 35. g3 {[%clk 0:00:54.7]} 35... Rc4 {[%clk
0:00:28.4]} 36. h4 {[%clk 0:00:54.2]} 36... h5 {[%clk 0:00:28.1]} 37. Rg5+
{[%clk 0:00:51.3]} 37... Kh6 {[%clk 0:00:22.7]} 38. Bf4 {[%clk 0:00:51.7]} 38...
Rc1+ {[%clk 0:00:22.5]} 39. Kg2 {[%clk 0:00:51.8]} 39... Kh7 {[%clk 0:00:17.1]}
40. Rxh5+ {[%clk 0:00:51.7]} 40... Kg8 {[%clk 0:00:16.8]} 41. Rb5 {[%clk
0:00:51.7]} 41... Bf6 {[%clk 0:00:16.7]} 42. h5 {[%clk 0:00:52.3]} 42... Kh7
{[%clk 0:00:17.1]} 43. g4 {[%clk 0:00:52.7]} 43... Rc4 {[%clk 0:00:15.4]} 44.
Kg3 {[%clk 0:00:52.2]} 44... Rc5 {[%clk 0:00:15.7]} 45. Rxc5 {[%clk 0:00:36.7]}
1-0

[Event "Early-Titled-Tuesday-Blitz-September-05-2023"]
[Site "Chess.com"]
[Date "2023.09.05"]
[Round "1"]
[White "angryspacevoid"]
[Black "skinerd6"]
[Result "1-0"]
[WhiteElo "2602"]
[BlackElo "2257"]
[TimeControl "180+1"]
[EndTime "8:07:07 PDT"]
[Termination "angryspacevoid won by resignation"]

1. e4 {[%clk 0:02:58.8]} 1... d5 {[%clk 0:02:59.2]} 2. exd5 {[%clk 0:02:54.7]}
2... Qxd5 {[%clk 0:03:00.1]} 3. Nc3 {[%clk 0:02:54]} 3... Qa5 {[%clk 0:03:00]}
4. d4 {[%clk 0:02:52.6]} 4... c6 {[%clk 0:02:59.6]} 5. Nf3 {[%clk 0:02:50.6]}
5... Nf6 {[%clk 0:03:00]} 6. Bc4 {[%clk 0:02:48.2]} 6... Bf5 {[%clk 0:03:00.4]}
7. Bd2 {[%clk 0:02:45.8]} 7... e6 {[%clk 0:02:59.7]} 8. Ne5 {[%clk 0:02:45.2]}
8... Nbd7 {[%clk 0:02:52.6]} 9. Qe2 {[%clk 0:02:27.2]} 9... Nxe5 {[%clk
0:02:39.1]} 10. dxe5 {[%clk 0:02:28.1]} 10... Nd7 {[%clk 0:02:38.7]} 11. f4
{[%clk 0:02:17.8]} 11... Bxc2 {[%clk 0:02:36.3]} 12. O-O {[%clk 0:02:10.1]}
12... h5 {[%clk 0:02:06.6]} 13. Rae1 {[%clk 0:01:29]} 13... Bf5 {[%clk
0:02:01.9]} 14. a3 {[%clk 0:01:17.4]} 14... Qc7 {[%clk 0:01:59.4]} 15. Ne4
{[%clk 0:01:15.5]} 15... Bxe4 {[%clk 0:01:58.8]} 16. Qxe4 {[%clk 0:01:15.2]}
16... g6 {[%clk 0:01:52.6]} 17. Bc3 {[%clk 0:01:03.9]} 17... O-O-O {[%clk
0:01:45.1]} 18. Rd1 {[%clk 0:00:56.9]} 18... Bc5+ {[%clk 0:01:43.7]} 19. Kh1
{[%clk 0:00:56.8]} 19... Nb6 {[%clk 0:01:44]} 20. Ba5 {[%clk 0:00:54.7]} 20...
Qe7 {[%clk 0:01:35.2]} 21. Be2 {[%clk 0:00:48.3]} 21... Rxd1 {[%clk 0:01:26.7]}
22. Bxd1 {[%clk 0:00:47.4]} 22... Nd5 {[%clk 0:01:27.3]} 23. Bd2 {[%clk
0:00:33.1]} 23... Rd8 {[%clk 0:01:25.4]} 24. b4 {[%clk 0:00:33.6]} 24... Bb6
{[%clk 0:01:25.4]} 25. a4 {[%clk 0:00:29.9]} 25... Kb8 {[%clk 0:01:13.4]} 26. a5
{[%clk 0:00:29.4]} 26... Bc7 {[%clk 0:01:13.1]} 27. Be2 {[%clk 0:00:24.4]} 27...
a6 {[%clk 0:01:03.3]} 28. Rc1 {[%clk 0:00:22.1]} 28... Rd7 {[%clk 0:01:02.9]}
29. h3 {[%clk 0:00:20.4]} 29... Qd8 {[%clk 0:01:02.7]} 30. Be1 {[%clk
0:00:19.7]} 30... Ne7 {[%clk 0:01:02.6]} 31. Bf2 {[%clk 0:00:17.8]} 31... Nf5
{[%clk 0:00:59.2]} 32. Rc4 {[%clk 0:00:14.8]} 32... Rd2 {[%clk 0:00:55.9]} 33.
g4 {[%clk 0:00:12]} 33... hxg4 {[%clk 0:00:55.5]} 34. hxg4 {[%clk 0:00:12.1]}
34... Rd1+ {[%clk 0:00:51.4]} 35. Bxd1 {[%clk 0:00:11.8]} 35... Qxd1+ {[%clk
0:00:50.7]} 36. Bg1 {[%clk 0:00:08.6]} 36... Qxg4 {[%clk 0:00:49.4]} 37. Qg2
{[%clk 0:00:06.4]} 37... Qh4+ {[%clk 0:00:41.5]} 38. Qh2 {[%clk 0:00:06.3]}
38... Qe1 {[%clk 0:00:40.8]} 39. Qh8+ {[%clk 0:00:05.8]} 1-0

[Event "Early-Titled-Tuesday-Blitz-September-05-2023"]
[Site "Chess.com"]
[Date "2023.09.05"]
[Round "1"]
[White "AdrianaPalao"]
[Black "gau248"]
[Result "0-1"]
[WhiteElo "2030"]
[BlackElo "2561"]
[TimeControl "180+1"]
[EndTime "8:07:07 PDT"]
[Termination "gau248 won by checkmate"]

1. e4 {[%clk 0:02:54.6]} 1... c5 {[%clk 0:02:54.9]} 2. Nf3 {[%clk 0:02:53.4]}
2... d6 {[%clk 0:02:54.8]} 3. d4 {[%clk 0:02:53.1]} 3... cxd4 {[%clk 0:02:54.9]}
4. Nxd4 {[%clk 0:02:54]} 4... Nf6 {[%clk 0:02:55.2]} 5. Nc3 {[%clk 0:02:53.7]}
5... a6 {[%clk 0:02:55.6]} 6. Be2 {[%clk 0:02:53.7]} 6... e6 {[%clk 0:02:49]} 7.
O-O {[%clk 0:02:54.1]} 7... b5 {[%clk 0:02:48.9]} 8. Bf3 {[%clk 0:02:52.7]} 8...
Ra7 {[%clk 0:02:45.5]} 9. Be3 {[%clk 0:02:37.5]} 9... Rd7 {[%clk 0:02:43.5]} 10.
a4 {[%clk 0:02:22.7]} 10... b4 {[%clk 0:02:42.5]} 11. Na2 {[%clk 0:02:22.5]}
11... a5 {[%clk 0:02:42]} 12. Nb5 {[%clk 0:02:17]} 12... Be7 {[%clk 0:02:37]}
13. Ba7 {[%clk 0:02:13.2]} 13... Nc6 {[%clk 0:02:33.5]} 14. Bd4 {[%clk
0:01:46.9]} 14... O-O {[%clk 0:02:27.5]} 15. c3 {[%clk 0:01:40.9]} 15... bxc3
{[%clk 0:02:22.6]} 16. Bxc3 {[%clk 0:01:34]} 16... Bb7 {[%clk 0:02:22.5]} 17.
Re1 {[%clk 0:01:33.8]} 17... d5 {[%clk 0:02:16.8]} 18. e5 {[%clk 0:01:32.5]}
18... Ne4 {[%clk 0:02:16.5]} 19. Bxe4 {[%clk 0:01:30.4]} 19... dxe4 {[%clk
0:02:17.4]} 20. Qg4 {[%clk 0:01:29.7]} 20... Nb4 {[%clk 0:02:14]} 21. Bxb4
{[%clk 0:01:23.4]} 21... axb4 {[%clk 0:02:12.5]} 22. Rad1 {[%clk 0:01:21.7]}
22... Bd5 {[%clk 0:02:01.7]} 23. Nc1 {[%clk 0:01:10.4]} 23... f5 {[%clk
0:02:01.3]} 24. exf6 {[%clk 0:01:03.3]} 24... Bxf6 {[%clk 0:02:01.1]} 25. Ne2
{[%clk 0:01:01.8]} 25... Qb6 {[%clk 0:01:58.4]} 26. Ned4 {[%clk 0:00:50.3]}
26... Rdf7 {[%clk 0:01:54.7]} 27. Qg3 {[%clk 0:00:34.7]} 27... Be7 {[%clk
0:01:30.7]} 28. Rf1 {[%clk 0:00:27.3]} 28... Bf6 {[%clk 0:01:26.8]} 29. b3
{[%clk 0:00:21.1]} 29... h6 {[%clk 0:01:03.3]} 30. h3 {[%clk 0:00:20.7]} 30...
Kh7 {[%clk 0:01:03]} 31. Nd6 {[%clk 0:00:18.4]} 31... Rd7 {[%clk 0:00:56.2]} 32.
N6b5 {[%clk 0:00:18.3]} 32... Rfd8 {[%clk 0:00:51.6]} 33. Qf4 {[%clk 0:00:17.6]}
33... Bxb3 {[%clk 0:00:45.2]} 34. Rb1 {[%clk 0:00:14.4]} 34... Bd5 {[%clk
0:00:43]} 35. Ne2 {[%clk 0:00:13.6]} 35... b3 {[%clk 0:00:39]} 36. Ng3 {[%clk
0:00:12.6]} 36... Bg5 {[%clk 0:00:30.4]} 37. Qg4 {[%clk 0:00:11.2]} 37... e3
{[%clk 0:00:30.4]} 38. fxe3 {[%clk 0:00:09.9]} 38... Qxe3+ {[%clk 0:00:30.5]}
39. Kh2 {[%clk 0:00:10.1]} 39... Qd2 {[%clk 0:00:27]} 40. Rfd1 {[%clk
0:00:09.7]} 40... Qxg2# {[%clk 0:00:27]} 0-1

[Event "Early-Titled-Tuesday-Blitz-September-05-2023"]
[Site "Chess.com"]
[Date "2023.09.05"]
[Round "1"]
[White "PeshkaCh"]
[Black "NLLO777"]
[Result "1-0"]
[WhiteElo "2788"]
[BlackElo "2434"]
[TimeControl "180+1"]
[EndTime "8:07:08 PDT"]
[Termination "PeshkaCh won by checkmate"]

1. Nf3 {[%clk 0:03:00.9]} 1... Nf6 {[%clk 0:02:58.2]} 2. d4 {[%clk 0:02:55.8]}
2... g6 {[%clk 0:02:56.2]} 3. c4 {[%clk 0:02:55.9]} 3... c5 {[%clk 0:02:54.4]}
4. g3 {[%clk 0:02:56]} 4... Bg7 {[%clk 0:02:54]} 5. Bg2 {[%clk 0:02:56.5]} 5...
O-O {[%clk 0:02:54.1]} 6. O-O {[%clk 0:02:56.6]} 6... d6 {[%clk 0:02:54.2]} 7.
Nc3 {[%clk 0:02:57]} 7... Nbd7 {[%clk 0:02:54.4]} 8. b3 {[%clk 0:02:56.5]} 8...
Rb8 {[%clk 0:02:54.2]} 9. Bb2 {[%clk 0:02:56.8]} 9... a6 {[%clk 0:02:51.5]} 10.
a4 {[%clk 0:02:50.2]} 10... b6 {[%clk 0:02:50]} 11. Qc2 {[%clk 0:02:47.4]} 11...
Bb7 {[%clk 0:02:49.9]} 12. Rfd1 {[%clk 0:02:47.3]} 12... cxd4 {[%clk 0:02:48.5]}
13. Nxd4 {[%clk 0:02:46.6]} 13... Bxg2 {[%clk 0:02:49.1]} 14. Kxg2 {[%clk
0:02:47.5]} 14... Qc7 {[%clk 0:02:47.4]} 15. Rac1 {[%clk 0:02:44.2]} 15... Rbc8
{[%clk 0:02:46]} 16. h3 {[%clk 0:02:40.2]} 16... Qb7+ {[%clk 0:02:44.1]} 17. Kg1
{[%clk 0:02:39.2]} 17... Nc5 {[%clk 0:02:40.9]} 18. Nf3 {[%clk 0:02:23.3]} 18...
Rfd8 {[%clk 0:02:32.9]} 19. Nd5 {[%clk 0:02:16.3]} 19... Nxd5 {[%clk 0:02:32.5]}
20. Rxd5 {[%clk 0:02:17.2]} 20... Bxb2 {[%clk 0:02:15.2]} 21. Qxb2 {[%clk
0:02:18.1]} 21... b5 {[%clk 0:02:07.6]} 22. axb5 {[%clk 0:01:36.9]} 22... axb5
{[%clk 0:02:08.5]} 23. Qc3 {[%clk 0:01:27.7]} 23... bxc4 {[%clk 0:02:01.1]} 24.
bxc4 {[%clk 0:01:28.6]} 24... Ne4 {[%clk 0:01:38.2]} 25. Qe3 {[%clk 0:01:27.4]}
25... Nf6 {[%clk 0:01:35.6]} 26. Rdd1 {[%clk 0:01:27.1]} 26... Rc5 {[%clk
0:01:34.8]} 27. Qxc5 {[%clk 0:01:19.4]} 27... dxc5 {[%clk 0:01:35.7]} 28. Rxd8+
{[%clk 0:01:19.9]} 28... Kg7 {[%clk 0:01:36.4]} 29. Rd3 {[%clk 0:01:13]} 29...
h5 {[%clk 0:01:31.8]} 30. Re3 {[%clk 0:01:11.9]} 30... e6 {[%clk 0:01:31.5]} 31.
Kg2 {[%clk 0:01:03.1]} 31... Qb2 {[%clk 0:01:30]} 32. Rcc3 {[%clk 0:00:55.6]}
32... Ne4 {[%clk 0:00:50.6]} 33. Rb3 {[%clk 0:00:51.7]} 33... Qc2 {[%clk
0:00:51.1]} 34. Rb7 {[%clk 0:00:50.4]} 34... Nd6 {[%clk 0:00:51]} 35. Rd7 {[%clk
0:00:30.9]} 35... Nxc4 {[%clk 0:00:47.8]} 36. Rxe6 {[%clk 0:00:31.5]} 36... Qf5
{[%clk 0:00:20.4]} 37. Ree7 {[%clk 0:00:31.8]} 37... Nb2 {[%clk 0:00:15]} 38. e4
{[%clk 0:00:30.1]} 38... Qf6 {[%clk 0:00:14.3]} 39. e5 {[%clk 0:00:30.5]} 39...
Qf5 {[%clk 0:00:14.1]} 40. e6 {[%clk 0:00:31.1]} 40... Qe4 {[%clk 0:00:08.9]}
41. Rxf7+ {[%clk 0:00:31.3]} 41... Kg8 {[%clk 0:00:09.5]} 42. Rg7+ {[%clk
0:00:30.5]} 42... Kf8 {[%clk 0:00:09.5]} 43. e7+ {[%clk 0:00:28.7]} 43... Ke8
{[%clk 0:00:08.7]} 44. Rd8# {[%clk 0:00:29.1]} 1-0

[Event "Early-Titled-Tuesday-Blitz-September-05-2023"]
[Site "Chess.com"]
[Date "2023.09.05"]
[Round "1"]
[White "UB_TheQueen"]
[Black "Russian_berezka"]
[Result "1-0"]
[WhiteElo "2084"]
[BlackElo "2549"]
[TimeControl "180+1"]
[EndTime "8:07:09 PDT"]
[Termination "UB_TheQueen won on time"]

1. e4 {[%clk 0:02:59.3]} 1... c5 {[%clk 0:02:58.8]} 2. Nf3 {[%clk 0:02:57.9]}
2... d6 {[%clk 0:02:59]} 3. d4 {[%clk 0:02:58.2]} 3... cxd4 {[%clk 0:02:59.3]}
4. Nxd4 {[%clk 0:02:59.1]} 4... Nf6 {[%clk 0:02:59.5]} 5. Nc3 {[%clk 0:02:59.5]}
5... a6 {[%clk 0:02:59.8]} 6. Bc4 {[%clk 0:02:59.1]} 6... e6 {[%clk 0:02:57.8]}
7. Bb3 {[%clk 0:02:59.4]} 7... Nbd7 {[%clk 0:02:57.6]} 8. g4 {[%clk 0:02:59.6]}
8... Nc5 {[%clk 0:02:46]} 9. f3 {[%clk 0:02:59.1]} 9... b5 {[%clk 0:02:43.3]}
10. Be3 {[%clk 0:02:59]} 10... Bb7 {[%clk 0:02:41.4]} 11. g5 {[%clk 0:02:59]}
11... Nfd7 {[%clk 0:02:41.1]} 12. Qd2 {[%clk 0:02:57.3]} 12... Be7 {[%clk
0:02:13.1]} 13. h4 {[%clk 0:02:56.1]} 13... Ne5 {[%clk 0:01:55.8]} 14. O-O-O
{[%clk 0:02:54]} 14... Rc8 {[%clk 0:01:44.4]} 15. h5 {[%clk 0:02:53.7]} 15...
Nxb3+ {[%clk 0:01:32]} 16. axb3 {[%clk 0:02:52.4]} 16... Qc7 {[%clk 0:01:22.7]}
17. Kb1 {[%clk 0:02:45.2]} 17... b4 {[%clk 0:00:43.1]} 18. Na4 {[%clk
0:02:42.5]} 18... d5 {[%clk 0:00:39.7]} 19. f4 {[%clk 0:02:08.4]} 19... Ng4
{[%clk 0:00:33.5]} 20. g6 {[%clk 0:02:08.5]} 20... dxe4 {[%clk 0:00:24.9]} 21.
gxf7+ {[%clk 0:01:54.4]} 21... Kxf7 {[%clk 0:00:25.8]} 22. f5 {[%clk 0:01:50.7]}
22... exf5 {[%clk 0:00:16.7]} 23. Nxf5 {[%clk 0:01:42.9]} 23... Nxe3 {[%clk
0:00:16.8]} 24. Nxe3 {[%clk 0:01:42.8]} 24... Rhd8 {[%clk 0:00:12.9]} 25. Qg2
{[%clk 0:01:31.1]} 25... Bf6 {[%clk 0:00:12.5]} 26. Rxd8 {[%clk 0:01:24.9]}
26... Rxd8 {[%clk 0:00:12.6]} 27. h6 {[%clk 0:01:25.4]} 27... g6 {[%clk
0:00:12.5]} 28. Rf1 {[%clk 0:01:24.6]} 28... Ke7 {[%clk 0:00:07]} 29. Ng4 {[%clk
0:01:09.1]} 29... Bg5 {[%clk 0:00:05.6]} 30. Qf2 {[%clk 0:01:04.6]} 30... Ke6
{[%clk 0:00:04]} 31. Nc5+ {[%clk 0:00:58.8]} 31... Kd6 {[%clk 0:00:03.2]} 32.
Qd4+ {[%clk 0:00:36.1]} 32... Kc6 {[%clk 0:00:03.2]} 33. Ne5+ {[%clk 0:00:36.1]}
33... Kb5 {[%clk 0:00:02.3]} 34. Qc4+ {[%clk 0:00:28.2]} 34... Kb6 {[%clk
0:00:02.9]} 35. Qxb4+ {[%clk 0:00:18.6]} 35... Ka7 {[%clk 0:00:03.1]} 36. Rf7
{[%clk 0:00:18.5]} 1-0

[Event "Early-Titled-Tuesday-Blitz-September-05-2023"]
[Site "Chess.com"]
[Date "2023.09.05"]
[Round "1"]
[White "Byniolus"]
[Black "Fleetw00dMac"]
[Result "1-0"]
[WhiteElo "2835"]
[BlackElo "2465"]
[TimeControl "180+1"]
[EndTime "8:07:11 PDT"]
[Termination "Byniolus won by resignation"]

1. d4 {[%clk 0:03:00.9]} 1... Nf6 {[%clk 0:02:59.2]} 2. Nf3 {[%clk 0:03:01.2]}
2... g6 {[%clk 0:02:59.4]} 3. Bf4 {[%clk 0:03:01.3]} 3... Bg7 {[%clk 0:02:58.8]}
4. e3 {[%clk 0:03:02]} 4... d6 {[%clk 0:02:58.8]} 5. h3 {[%clk 0:03:01.9]} 5...
O-O {[%clk 0:02:57.9]} 6. Be2 {[%clk 0:03:02.5]} 6... Nc6 {[%clk 0:02:57.5]} 7.
O-O {[%clk 0:03:02.4]} 7... e5 {[%clk 0:02:57.2]} 8. Bh2 {[%clk 0:03:02.1]} 8...
Ne4 {[%clk 0:02:52.5]} 9. c3 {[%clk 0:02:50.7]} 9... f5 {[%clk 0:02:50.9]} 10.
Nbd2 {[%clk 0:02:35.9]} 10... Nxd2 {[%clk 0:02:48]} 11. Nxd2 {[%clk 0:02:36.8]}
11... Qe7 {[%clk 0:02:42.8]} 12. Re1 {[%clk 0:02:32.4]} 12... Kh8 {[%clk
0:02:37]} 13. b4 {[%clk 0:02:27.4]} 13... Bd7 {[%clk 0:02:10.7]} 14. Nc4 {[%clk
0:02:08.1]} 14... Rae8 {[%clk 0:02:04.1]} 15. b5 {[%clk 0:01:41.1]} 15... Nb8
{[%clk 0:01:41]} 16. a4 {[%clk 0:01:35.9]} 16... Bc8 {[%clk 0:01:39.6]} 17. Qb3
{[%clk 0:01:27.2]} 17... Nd7 {[%clk 0:01:35.5]} 18. a5 {[%clk 0:01:23.3]} 18...
b6 {[%clk 0:01:33.3]} 19. axb6 {[%clk 0:01:19.3]} 19... axb6 {[%clk 0:01:32]}
20. Ra7 {[%clk 0:01:19.5]} 20... Qd8 {[%clk 0:01:21.7]} 21. Rd1 {[%clk
0:00:59.4]} 21... exd4 {[%clk 0:01:17.4]} 22. cxd4 {[%clk 0:00:55.8]} 22... f4
{[%clk 0:01:17.1]} 23. Bf3 {[%clk 0:00:47.4]} 23... fxe3 {[%clk 0:01:15.2]} 24.
fxe3 {[%clk 0:00:48.3]} 24... Nf6 {[%clk 0:01:12.5]} 25. Bc6 {[%clk 0:00:39.9]}
25... Re7 {[%clk 0:01:07.6]} 26. Ra8 {[%clk 0:00:32.5]} 26... Ne4 {[%clk
0:00:56.7]} 27. Rda1 {[%clk 0:00:30.1]} 27... Ng5 {[%clk 0:00:40.9]} 28. Qd3
{[%clk 0:00:22.3]} 28... Ref7 {[%clk 0:00:24.5]} 29. Bf4 {[%clk 0:00:18]} 29...
Ne6 {[%clk 0:00:23.1]} 30. Bg3 {[%clk 0:00:18.4]} 30... Qg5 {[%clk 0:00:21]} 31.
Kh2 {[%clk 0:00:17]} 31... h5 {[%clk 0:00:17.9]} 32. h4 {[%clk 0:00:17.6]} 32...
Qf5 {[%clk 0:00:16.2]} 33. Be4 {[%clk 0:00:15.4]} 33... Qg4 {[%clk 0:00:16.2]}
34. Bxg6 {[%clk 0:00:15.5]} 34... Rf6 {[%clk 0:00:14.4]} 35. Be4 {[%clk
0:00:14.9]} 35... Bd7 {[%clk 0:00:12.4]} 36. Rxf8+ {[%clk 0:00:14]} 36... Rxf8
{[%clk 0:00:12.1]} 37. Bf3 {[%clk 0:00:13.7]} 1-0